fUST/lending_fUST_20250302
["ID","MTS","AMOUNT","RATE_DAILY","PERIOD"]
[355087679,1740887508344,-584.33,0.00029451,2]
[355087681,1740887508354,-25446.5,0.00029451,2]
[355087683,1740887508363,-726.66,0.00029451,2]
[355087685,1740887508373,-1001.53595314,0.00029452,5]
[355087687,1740887508383,-1000.0,0.00029452,5]
[355087689,1740887508392,-1000.0,0.00029452,5]
[355087691,1740887508402,-1000.0,0.00029452,5]
[355087693,1740887508412,-1000.0,0.00029452,5]
[355087695,1740887508422,-1000.0,0.00029452,5]
[355087697,1740887508432,-1000.0,0.00029452,5]
[355087699,1740887508442,-1000.70252095,0.00029452,5]
[355087701,1740887508451,-1103.03949065,0.00029452,5]
[355087703,1740887508462,-1011.22600107,0.00029452,5]
[355087705,1740887508471,-1000.0,0.00029452,5]
[355087707,1740887508481,-316.42264927,0.00029452,5]
[355087709,1740887508490,-1000.0,0.00029452,5]
[355087711,1740887508499,-1000.0,0.00029452,5]
[355087713,1740887508509,-155.378756,0.0002946,2]
[355087714,1740887508518,-330.63,0.000295,7]
[355087716,1740887508527,-205.69271906,0.000295,5]
[355087718,1740887508537,-216.0,0.0002954,27]
[355087720,1740887508546,-700.75,0.00029543,2]
[355087722,1740887508556,-509.21,0.00029543,2]
[355087724,1740887508566,-511.51,0.00029543,2]
[355087726,1740887508576,-545.25,0.00029543,2]
[355087729,1740887508587,-984.68,0.00029543,2]
[355087730,1740887508596,-532.97,0.00029543,2]
[355087732,1740887508606,-151.0,0.00029543,7]
[355087734,1740887508618,-787.96,0.00029543,2]
[355087736,1740887508627,-151.0,0.00029543,7]
[355087738,1740887508638,-243.835324,0.00029543,7]
[355087740,1740887508647,-151.0,0.00029543,7]
[355087742,1740887508659,-492.29534745,0.00029543,2]
[355087744,1740887508668,-879.86,0.00029543,2]
[355087746,1740887508678,-151.0,0.00029543,7]
[355087748,1740887508689,-220.324618,0.00029543,7]
[355087750,1740887508698,-511.59,0.00029543,2]
[355087752,1740887508708,-1331.9,0.00029543,2]
[355087754,1740887508717,-450.71883055,0.00029543,2]
[355087756,1740887508726,-241.87324872,0.00029543,2]
[355087758,1740887508736,-500.0,0.00029543,2]
[355087760,1740887508745,-2389.55,0.00029543,2]
[355087762,1740887508754,-1197.27,0.00029543,2]
[355087764,1740887508764,-1199.41,0.00029543,2]
[355087766,1740887508773,-800.95,0.00029544,2]
[355087768,1740887508783,-595.63,0.00029544,2]
[355087769,1740887508793,-619.14,0.00029544,2]
[355087770,1740887508802,-696.73,0.00029544,2]
[355087771,1740887508812,-252.60744673,0.00029544,2]
[355087772,1740887508823,-827.74,0.00029544,2]
[355087773,1740887508833,-556.71,0.00029544,2]
[355087774,1740887508843,-645.31,0.00029544,2]
[355087775,1740887508853,-546.83,0.00029544,2]
[355087777,1740887508863,-1197.2,0.00029544,2]
[355087778,1740887508872,-151.0,0.00029544,7]
[355087781,1740887508882,-824.78,0.00029544,2]
[355087783,1740887508892,-510.26,0.00029544,2]
[355087784,1740887508901,-337.005517,0.00029544,7]
[355087786,1740887508910,-337.005517,0.00029544,7]
[355087788,1740887508920,-151.0,0.00029544,7]
[355087790,1740887508929,-671.0,0.00029544,2]
[355087792,1740887508939,-166.261306,0.00029544,7]
[355087794,1740887508949,-151.0,0.00029544,7]
[355087796,1740887508959,-166.261306,0.00029544,7]
[355087798,1740887508968,-295.882245,0.00029544,7]
[355087801,1740887508979,-151.0,0.00029544,2]
[355087803,1740887508989,-1080.75,0.00029544,2]
[355087805,1740887508999,-998.88,0.00029544,2]
[355087807,1740887509008,-500.0,0.00029544,2]
[355087809,1740887509018,-1216.98,0.00029544,2]
[355087811,1740887509027,-658.58,0.00029544,2]
[355087813,1740887509037,-151.0,0.00029544,7]
[355087815,1740887509047,-1583.32,0.00029544,2]
[355087817,1740887509057,-633.86,0.00029544,2]
[355087819,1740887509066,-220.61907018,0.00029544,2]
[355087821,1740887509075,-903.21,0.00029544,2]
[355087823,1740887509087,-1000.0,0.00029552,5]
[355087825,1740887509097,-355.8486436,0.00029589,30]
[355087827,1740887509106,-153.0,0.00029589,30]
[355087829,1740887509117,-153.0,0.00029589,30]
[355087830,1740887509135,-153.0,0.00029589,30]
[355087833,1740887509146,-153.0,0.00029589,30]
[355087835,1740887509156,-153.0,0.00029589,30]
[355087837,1740887509165,-153.0,0.00029589,30]
[355087839,1740887509175,-151.0,0.00029666,7]
[355087841,1740887509185,-576.68096071,0.00029718,2]
[355087843,1740887509194,-695.94797238,0.00029721,2]
[355087845,1740887509205,-638.32374948,0.00029721,2]
[355087847,1740887509215,-512.46552636,0.00029721,2]
[355087849,1740887509224,-517.82340472,0.00029721,2]
[355087850,1740887509233,-555.99673259,0.00029721,2]
[355087852,1740887509243,-604.3352793,0.00029721,2]
[355087854,1740887509252,-535.51578356,0.00029721,2]
[355087856,1740887509262,-644.87933136,0.00029721,2]
[355087858,1740887509272,-1109.7845929,0.00029721,2]
[355087860,1740887509281,-3939.04530711,0.00029723,2]
[355087862,1740887509291,-1897.38802742,0.00029723,2]
[355087864,1740887509300,-815.1761357,0.00029723,2]
[355087866,1740887509310,-582.58190616,0.00029723,2]
[355087868,1740887509320,-606.55244914,0.00029724,2]
[355087870,1740887509330,-1398.90426106,0.00029724,2]
[355087872,1740887509340,-610.89327347,0.00029724,2]
[355087875,1740887509351,-722.78460047,0.00029724,2]
[355087877,1740887509361,-1444.09406917,0.00029724,2]
[355087879,1740887509372,-1058.28140525,0.00029724,2]
[355087881,1740887509382,-1004.46944107,0.00029724,2]
[355087883,1740887509392,-151.0,0.00029724,7]
[355087885,1740887509402,-700.20816529,0.00029724,2]
[355087887,1740887509411,-2209.79174031,0.00029724,2]
[355087889,1740887509421,-6855.1977277,0.00029724,2]
[355087891,1740887509430,-933.82225708,0.00029724,2]
[355087893,1740887509440,-612.47466304,0.00029724,2]
[355087895,1740887509449,-785.22336061,0.00029724,2]
[355087897,1740887509460,-829.64982661,0.00029724,2]
[355087899,1740887509470,-966.67007886,0.00029724,2]
[355087901,1740887509479,-895.47621378,0.00029724,2]
[355087903,1740887509489,-6949.32386573,0.00029724,2]
[355087905,1740887509499,-863.82201419,0.00029724,2]
[355087907,1740887509508,-4270.37617476,0.00029724,2]
[355087909,1740887509518,-1135.55732384,0.00029724,2]
[355087911,1740887509527,-637.76657969,0.00029724,2]
[355087913,1740887509536,-3293.30221478,0.00029724,2]
[355087915,1740887509545,-5348.29354949,0.00029724,2]
[355087917,1740887509555,-4550.00381641,0.00029724,2]
[355087919,1740887509564,-769.49951722,0.00029724,2]
[355087921,1740887509573,-2567.43535913,0.00029724,2]
[355087923,1740887509583,-1086.42968537,0.00029724,2]
[355087925,1740887509592,-605.00278945,0.00029724,2]
[355087927,1740887509601,-7043.55297652,0.00029724,2]
[355087929,1740887509614,-786.23039478,0.00029724,2]
[355087931,1740887509624,-1576.94754215,0.00029724,2]
[355087933,1740887509634,-2514.19,0.00029724,2]
[355087935,1740887509643,-2961.69472753,0.00029724,2]
[355087937,1740887509654,-5947.33389022,0.00029724,2]
[355087939,1740887509663,-1198.29022125,0.00029724,2]
[355087941,1740887509673,-1871.10438239,0.00029724,2]
[355087943,1740887509684,-1005.06732099,0.00029724,2]
[355087945,1740887509694,-753.08334477,0.00029724,2]
[355087947,1740887509703,-90589.05603555,0.00029725,2]
[355087949,1740887509713,-1609.12555522,0.00029725,2]
[355087951,1740887509723,-917.71158589,0.00029725,2]
[355087953,1740887509732,-7853.68545003,0.00029725,2]
[355087955,1740887509742,-2071.51018248,0.00029725,2]
[355087957,1740887509751,-2786.45784595,0.00029725,2]
[355087959,1740887509760,-584.43919329,0.00029725,2]
[355087961,1740887509769,-25446.55337156,0.00029725,2]
[355087963,1740887509779,-726.89912668,0.00029725,2]
[355087965,1740887509788,-1000.0,0.00029752,5]
[355087967,1740887509798,-1000.0,0.00029752,5]
[355087969,1740887509806,-1000.0,0.00029752,5]
[355087971,1740887509815,-1009.31008011,0.00029752,5]
[355087973,1740887509825,-1000.0,0.00029752,5]
[355087975,1740887509835,-1000.0,0.00029752,5]
[355087977,1740887509844,-1000.0,0.00029752,5]
[355087979,1740887509854,-513.66900385,0.00029752,5]
[355087981,1740887509863,-1000.0,0.00029752,5]
[355087983,1740887509873,-1000.0,0.00029752,5]
[355087985,1740887509882,-1000.0,0.00029752,5]
[355087987,1740887509891,-1000.0,0.00029752,5]
[355087989,1740887509901,-1000.0,0.00029752,5]
[355087991,1740887509912,-1000.0,0.00029752,5]
[355087993,1740887509921,-1000.0,0.00029752,5]
[355087995,1740887509931,-1000.0,0.00029752,5]
[355087997,1740887509940,-1000.0,0.00029752,5]
[355087999,1740887509950,-1004.56521754,0.00029752,5]
[355088001,1740887509960,-299.57708127,0.00029752,5]
[355088003,1740887509970,-1021.7515553,0.00029768,3]
[355088005,1740887509980,-700.8640184,0.00029816,2]
[355088007,1740887509989,-509.43573446,0.00029816,2]
[355088009,1740887509998,-511.71,0.00029816,2]
[355088011,1740887510007,-545.25606274,0.00029816,2]
[355088013,1740887510018,-984.87073854,0.00029816,2]
[355088015,1740887510027,-532.99323501,0.00029816,2]
[355088017,1740887510036,-788.01045388,0.00029816,2]
[355088019,1740887510046,-879.88501095,0.00029816,2]
[355088021,1740887510055,-511.71159474,0.00029816,2]
[355088023,1740887510064,-1332.11416289,0.00029816,2]
[355088025,1740887510074,-164.330266,0.00029816,7]
[355088027,1740887510083,-164.330266,0.00029816,7]
[355088029,1740887510092,-198.43670256,0.00029816,2]
[355088031,1740887510101,-2389.57118197,0.00029816,2]
[355088033,1740887510110,-1197.29990569,0.00029816,2]
[355088035,1740887510119,-1199.49920859,0.00029816,2]
[355088037,1740887510129,-801.17955412,0.00029818,2]
[355088039,1740887510138,-595.71013845,0.00029818,2]
[355088041,1740887510147,-180.168176,0.00029818,7]
[355088043,1740887510156,-619.2684994,0.00029818,2]
[355088045,1740887510166,-696.88,0.00029818,2]
[355088047,1740887510175,-827.75987454,0.00029818,2]
[355088049,1740887510184,-556.94571358,0.00029818,2]
[355088051,1740887510194,-645.39973395,0.00029818,2]
[355088053,1740887510203,-547.05789068,0.00029818,2]
[355088055,1740887510215,-1197.24162287,0.00029818,2]
[355088057,1740887510224,-824.99310098,0.00029818,2]
[355088059,1740887510233,-510.28,0.00029818,2]
[355088061,1740887510242,-671.08652413,0.00029818,2]
[355088063,1740887510252,-1080.92135013,0.00029818,2]
[355088065,1740887510262,-998.90452992,0.00029818,2]
[355088067,1740887510271,-381.24687421,0.00029818,2]
[355088069,1740887510280,-1217.16,0.00029818,2]
[355088071,1740887510290,-658.61144864,0.00029818,2]
[355088073,1740887510299,-1583.43509201,0.00029818,2]
[355088074,1740887510308,-634.04803571,0.00029818,2]
[355088076,1740887510317,-903.30648912,0.00029818,2]
[355088078,1740887510327,-1291.3,0.00029863,2]
[355088080,1740887510336,-2660.43615645,0.0002988,2]
[355088082,1740887510346,-3471.61892609,0.000299,120]
[355088084,1740887510355,-823.0,0.00029911,2]
[355088086,1740887510364,-4906.06607745,0.0002996,7]
[355088088,1740887510373,-25000.0,0.00029998,5]
[355088090,1740887510383,-3499.999,0.0003,2]
[355088092,1740887510392,-2000.0,0.0003,2]
[355088094,1740887510401,-1000.00532452,0.0003,7]
[355088096,1740887510410,-500.0,0.0003,10]
[355088098,1740887510420,-395.53920756,0.0003,10]
[355088100,1740887510429,-400.0,0.0003,120]
[355088102,1740887510439,-210.14683346,0.0003,120]
[355088104,1740887510448,-5000.0,0.0003,2]
[355088106,1740887510458,-9219.51889789,0.0003,120]
[355088108,1740887510467,-48000.0,0.0003,2]
[355088110,1740887510477,-500.6187961,0.0003,2]
[355088112,1740887510487,-258.0,0.0003,120]
[355088114,1740887510496,-179.44014982,0.0003,120]
[355088116,1740887510506,-173.6385,0.0003,2]
[355088119,1740887510515,-5317.0,0.0003,7]
[355088121,1740887510530,-3573.54,0.0003,2]
[355088123,1740887510540,-500.0,0.0003,14]
[355088125,1740887510549,-225.0,0.0003,2]
[355088127,1740887510558,-160.0,0.0003,3]
[355088129,1740887510568,-160.0,0.0003,7]
[355088131,1740887510578,-251.0,0.0003,7]
[355088133,1740887510587,-160.0,0.0003,3]
[355088135,1740887510597,-2000.0,0.0003,4]
[355088137,1740887510609,-160.0,0.0003,3]
[355088139,1740887510619,-160.0,0.0003,7]
[355088141,1740887510629,-158.537,0.0003,2]
[355088143,1740887510639,-1291.3,0.00030136,2]
[355088145,1740887510649,-300.0,0.00030136,120]
[355088147,1740887510658,-300.0,0.00030136,120]
[355088149,1740887510667,-300.0,0.00030136,120]
[355088151,1740887510677,-300.0,0.00030136,120]
[355088153,1740887510687,-300.0,0.00030136,120]
[355088155,1740887510696,-300.0,0.00030136,120]
[355088157,1740887510705,-300.0,0.00030136,120]
[355088159,1740887510714,-300.0,0.00030136,120]
[355088161,1740887510723,-300.0,0.00030136,120]
[355088162,1740887510733,-300.0,0.00030136,120]
[355088165,1740887510743,-300.0,0.00030136,120]
[355088167,1740887510753,-300.0,0.00030136,120]
[355088169,1740887510763,-300.0,0.00030136,120]
[355088171,1740887510773,-300.0,0.00030136,120]
[355088173,1740887510782,-217.13777038,0.00030136,120]
[355088175,1740887510792,-500.0,0.00030137,5]
[355088177,1740887510802,-1159.70527,0.00030388,30]
[355088179,1740887510811,-1291.3,0.0003041,2]
[355088181,1740887510821,-153.0,0.00030411,30]
[355088183,1740887510830,-155.378756,0.0003045,3]
[355088185,1740887510839,-2000.0,0.000305,2]
[355088187,1740887510848,-1291.3,0.00030684,2]
[355088189,1740887510858,-1000.0,0.00030685,5]
[355088191,1740887510867,-8413.33204885,0.00030792,2]
[355088193,1740887510877,-2988.0,0.000309,15]
[355088195,1740887510886,-1291.3,0.00030958,2]
[355088197,1740887510895,-299.33476126,0.0003099,2]
[355088199,1740887510905,-25000.0,0.00031,6]
[355088201,1740887510913,-5000.0,0.00031,2]
[355088203,1740887510923,-151.0,0.00031,7]
[355088205,1740887510932,-160.0,0.00031,30]
[355088207,1740887510942,-160.0,0.00031,120]
[355088209,1740887510951,-3201.2741002,0.00031131,4]
[355088211,1740887510963,-330.63,0.000312,7]
[355088213,1740887510972,-1291.3,0.00031232,2]
[355088215,1740887510982,-1500.0,0.00031233,5]
[355088217,1740887510992,-610.23553984,0.00031361,2]
[355088219,1740887511002,-205.69271906,0.00031367,6]
[355088221,1740887511012,-1291.3,0.00031506,2]
[355088223,1740887511022,-2400.0,0.000316,30]
[355088225,1740887511032,-2400.0,0.000316,30]
[355088227,1740887511042,-2400.0,0.000316,30]
[355088229,1740887511051,-2400.0,0.000316,30]
[355088231,1740887511061,-500.0,0.000316,30]
[355088233,1740887511071,-2400.0,0.000316,30]
[355088235,1740887511081,-500.0,0.000316,30]
[355088237,1740887511091,-2400.0,0.000316,30]
[355088239,1740887511100,-500.0,0.000316,30]
[355088241,1740887511110,-2400.0,0.000316,30]
[355088243,1740887511121,-500.0,0.000316,30]
[355088245,1740887511130,-2400.0,0.000316,30]
[355088247,1740887511140,-2400.0,0.000316,30]
[355088249,1740887511149,-2400.0,0.000316,30]
[355088251,1740887511159,-2400.0,0.000316,30]
[355088254,1740887511169,-2400.0,0.000316,30]
[355088256,1740887511178,-2400.0,0.000316,30]
[355088258,1740887511188,-2400.0,0.000316,30]
[355088260,1740887511198,-1291.3,0.0003178,2]
[355088262,1740887511208,-2000.0,0.00031781,5]
[355088264,1740887511218,-150.0,0.00031842,2]
[355088266,1740887511227,-150.0,0.00031842,2]
[355088268,1740887511237,-397.0,0.00031842,2]
[355088270,1740887511247,-2000.0,0.00031875,4]
[355088272,1740887511256,-5073.94050941,0.000319,2]
[355088274,1740887511266,-282.794393,0.00031963,120]
[355088276,1740887511276,-2000.0,0.00032,2]
[355088278,1740887511285,-21312.52321467,0.00032,3]
[355088280,1740887511295,-13981.0,0.00032,30]
[355088282,1740887511306,-5000.0,0.00032,2]
[355088284,1740887511315,-98150.43129871,0.00032,120]
[355088286,1740887511325,-158.70166863,0.00032,30]
[355088288,1740887511335,-160.0,0.00032,3]
[355088290,1740887511344,-160.0,0.00032,30]
[355088292,1740887511353,-160.0,0.00032,120]
[355088294,1740887511363,-1000.0,0.00032,2]
[355088296,1740887511372,-160.0,0.00032,3]
[355088298,1740887511382,-1291.3,0.00032054,2]
[355088300,1740887511392,-1115.650032,0.00032055,30]
[355088302,1740887511402,-25000.0,0.00032161,7]
[355088304,1740887511411,-183.894362,0.0003228,7]
[355088306,1740887511421,-183.894362,0.0003228,7]
[355088307,1740887511431,-501.46276249,0.0003228,30]
[355088309,1740887511440,-500.0,0.0003228,30]
[355088311,1740887511450,-1700.0,0.0003228,30]
[355088313,1740887511460,-1700.0,0.0003228,30]
[355088315,1740887511470,-1700.0,0.0003228,30]
[355088317,1740887511479,-1700.0,0.0003228,30]
[355088319,1740887511489,-1700.0,0.0003228,30]
[355088321,1740887511498,-1700.0,0.0003228,30]
[355088323,1740887511507,-1700.0,0.0003228,30]
[355088325,1740887511517,-1700.0,0.0003228,30]
[355088327,1740887511526,-1700.0,0.0003228,30]
[355088329,1740887511535,-1700.0,0.0003228,30]
[355088331,1740887511545,-1700.0,0.0003228,30]
[355088333,1740887511554,-1700.0,0.0003228,30]
[355088335,1740887511563,-500.0,0.0003228,30]
[355088337,1740887511573,-1700.0,0.0003228,30]
[355088339,1740887511583,-500.0,0.0003228,30]
[355088341,1740887511593,-500.0,0.0003228,30]
[355088343,1740887511602,-1700.0,0.0003228,30]
[355088345,1740887511617,-500.0,0.0003228,30]
[355088347,1740887511626,-500.0,0.0003228,30]
[355088349,1740887511636,-1700.0,0.0003228,30]
[355088351,1740887511646,-500.0,0.0003228,30]
[355088353,1740887511657,-500.0,0.0003228,30]
[355088355,1740887511667,-500.0,0.0003228,30]
[355088358,1740887511677,-500.0,0.0003228,30]
[355088360,1740887511689,-500.0,0.0003228,30]
[355088362,1740887511700,-500.0,0.0003228,30]
[355088364,1740887511710,-500.0,0.0003228,30]
[355088366,1740887511719,-500.0,0.0003228,30]
[355088368,1740887511729,-500.0,0.0003228,30]
[355088370,1740887511739,-500.0,0.0003228,30]
[355088372,1740887511749,-500.0,0.0003228,30]
[355088374,1740887511758,-500.0,0.0003228,30]
[355088376,1740887511769,-500.0,0.0003228,30]
[355088378,1740887511779,-500.0,0.0003228,30]
[355088380,1740887511789,-500.0,0.0003228,30]
[355088382,1740887511799,-500.0,0.0003228,30]
[355088384,1740887511808,-500.0,0.0003228,30]
[355088386,1740887511818,-500.0,0.0003228,30]
[355088388,1740887511828,-1291.3,0.00032328,2]
[355088390,1740887511838,-2500.0,0.00032329,5]
[355088392,1740887511848,-2988.0,0.000324,16]
[355088394,1740887511857,-25000.0,0.00032434,17]
[355088396,1740887511867,-1152.0,0.00032456,2]
[355088398,1740887511877,-1000.0,0.00032465,30]
[355088400,1740887511887,-1000.0,0.00032465,30]
[355088402,1740887511896,-1000.0,0.00032465,30]
[355088404,1740887511906,-1000.0,0.00032465,30]
[355088406,1740887511916,-1000.0,0.00032465,30]
[355088408,1740887511926,-1000.0,0.00032465,30]
[355088410,1740887511936,-1000.0,0.00032465,30]
[355088412,1740887511946,-1147.63465878,0.00032465,30]
[355088414,1740887511956,-922.12905178,0.000325,30]
[355088416,1740887511965,-155.378756,0.0003256,7]
[355088418,1740887511975,-1291.3,0.00032602,2]
[355088420,1740887511985,-1291.3,0.00032876,2]
[355088422,1740887511995,-64763.68203054,0.00032876,3]
[355088424,1740887512006,-500.0,0.00032876,120]
[355088426,1740887512016,-500.0,0.00032876,120]
[355088429,1740887512026,-500.0,0.00032876,120]
[355088431,1740887512036,-500.0,0.00032876,120]
[355088433,1740887512046,-500.0,0.00032876,120]
[355088435,1740887512059,-500.0,0.00032876,120]
[355088437,1740887512069,-500.0,0.00032876,120]
[355088439,1740887512079,-500.0,0.00032876,120]
[355088441,1740887512089,-500.0,0.00032876,120]
[355088443,1740887512099,-519.73332835,0.00032876,120]
[355088445,1740887512109,-151.0,0.00032876,7]
[355088447,1740887512119,-525.75,0.00032876,120]
[355088449,1740887512130,-525.75,0.00032876,120]
[355088451,1740887512141,-525.75,0.00032876,120]
[355088453,1740887512151,-525.75,0.00032876,120]
[355088455,1740887512162,-525.75,0.00032876,120]
[355088457,1740887512172,-525.75,0.00032876,120]
[355088459,1740887512182,-525.75,0.00032876,120]
[355088461,1740887512192,-525.75,0.00032876,120]
[355088463,1740887512203,-525.75,0.00032876,120]
[355088465,1740887512214,-525.75,0.00032876,120]
[355088467,1740887512225,-525.75,0.00032876,120]
[355088470,1740887512236,-525.75,0.00032876,120]
[355088472,1740887512247,-525.75,0.00032876,120]
[355088474,1740887512258,-525.75,0.00032876,120]
[355088476,1740887512269,-525.75,0.00032876,120]
[355088478,1740887512279,-525.75,0.00032876,120]
[355088480,1740887512291,-525.75,0.00032876,120]
[355088482,1740887512301,-525.75,0.00032876,120]
[355088484,1740887512312,-525.75,0.00032876,120]
[355088486,1740887512324,-337.005517,0.00032876,7]
[355088488,1740887512335,-525.75,0.00032876,120]
[355088490,1740887512345,-525.75,0.00032876,120]
[355088492,1740887512357,-525.75,0.00032876,120]
[355088494,1740887512368,-525.75,0.00032876,120]
[355088496,1740887512378,-525.86127473,0.00032876,120]
[355088498,1740887512388,-337.005517,0.00032876,7]
[355088500,1740887512399,-151.0,0.00032876,7]
[355088502,1740887512410,-151.0,0.00032876,7]
[355088504,1740887512420,-151.0,0.00032876,2]
[355088507,1740887512431,-1000.0,0.00032876,120]
[355088508,1740887512441,-151.0,0.00032876,7]
[355088511,1740887512452,-151.0,0.00032876,7]
[355088513,1740887512464,-373.76271696,0.00032876,2]
[355088514,1740887512475,-496.33134517,0.00032876,2]
[355088517,1740887512486,-500.0,0.00032876,2]
[355088518,1740887512497,-500.0,0.00032876,2]
[355088519,1740887512508,-482.73437646,0.00032876,2]
[355088520,1740887512519,-500.0,0.00032876,2]
[355088521,1740887512529,-500.0,0.00032876,2]
[355088522,1740887512540,-500.0,0.00032876,2]
[355088523,1740887512550,-500.0,0.00032876,2]
[355088524,1740887512560,-500.0,0.00032876,2]
[355088525,1740887512570,-500.0,0.00032876,2]
[355088526,1740887512581,-214.63291678,0.00032876,2]
[355088527,1740887512591,-500.0,0.00032876,2]
[355088528,1740887512602,-500.0,0.00032876,2]
[355088529,1740887512616,-500.0,0.00032876,2]
[355088530,1740887512626,-500.0,0.00032876,2]
[355088531,1740887512637,-500.0,0.00032876,2]
[355088532,1740887512647,-326.11061816,0.00032876,2]
[355088533,1740887512659,-500.0,0.00032876,2]
[355088534,1740887512669,-500.0,0.00032876,2]
[355088536,1740887512680,-627.35423817,0.00032876,2]
[355088539,1740887512692,-174.76944891,0.00032876,2]
[355088540,1740887512704,-255.0,0.00032876,2]
[355088543,1740887512715,-500.0,0.00032876,2]
[355088545,1740887512725,-500.0,0.00032876,2]
[355088547,1740887512734,-250.0,0.00032876,2]
[355088549,1740887512745,-500.0,0.00032876,2]
[355088551,1740887512755,-500.0,0.00032876,2]
[355088553,1740887512765,-300.0,0.00032876,2]
[355088555,1740887512775,-500.0,0.00032876,2]
[355088557,1740887512786,-500.0,0.00032877,2]
[355088559,1740887512795,-500.0,0.00032877,2]
[355088561,1740887512805,-205.9782179,0.00032877,2]
[355088563,1740887512816,-873.16635,0.00032877,2]
[355088565,1740887512826,-174.93014,0.00032877,14]
[355088567,1740887512837,-174.93014,0.00032877,14]
[355088569,1740887512847,-174.93014,0.00032877,14]
[355088571,1740887512857,-174.93014,0.00032877,14]
[355088573,1740887512867,-174.93014,0.00032877,14]
[355088575,1740887512878,-174.93014,0.00032877,14]
[355088577,1740887512888,-174.93014,0.00032877,14]
[355088579,1740887512899,-174.93014,0.00032877,14]
[355088581,1740887512909,-174.93014,0.00032877,14]
[355088583,1740887512919,-174.93014,0.00032877,14]
[355088585,1740887512929,-3000.0,0.00032877,5]
[355088588,1740887512939,-151.0,0.00032877,14]
[355088590,1740887512950,-166.261306,0.00032877,14]
[355088592,1740887512961,-166.261306,0.00032877,14]
[355088594,1740887512971,-151.0,0.00032877,14]
[355088596,1740887512981,-174.93014,0.00032877,14]
[355088598,1740887512991,-174.93014,0.00032877,14]
[355088600,1740887513001,-207.499469,0.00032877,14]
[355088602,1740887513011,-151.0,0.00032877,14]
[355088604,1740887513021,-151.0,0.00032877,14]
[355088606,1740887513031,-151.0,0.00032877,14]
[355088608,1740887513042,-151.0,0.00032877,14]
[355088610,1740887513052,-164.330266,0.00032877,14]
[355088612,1740887513061,-164.330266,0.00032877,14]
[355088615,1740887513071,-500.0,0.00032877,7]
[355088617,1740887513081,-500.0,0.00032877,7]
[355088619,1740887513091,-192.26262029,0.00032877,7]
[355088621,1740887513101,-500.0,0.00032877,7]
[355088623,1740887513111,-500.0,0.00032877,7]
[355088625,1740887513121,-500.0,0.00032877,7]
[355088627,1740887513131,-500.0,0.00032877,7]
[355088629,1740887513140,-500.0,0.00032877,7]
[355088631,1740887513152,-500.0,0.00032877,7]
[355088633,1740887513162,-230.36358264,0.00032877,7]
[355088658,1740887513172,-500.0,0.00032877,7]
[355088661,1740887513416,-500.0,0.00032877,7]
[355088663,1740887513426,-500.0,0.00032877,7]
[355088665,1740887513435,-500.0,0.00032877,7]
[355088667,1740887513445,-500.0,0.00032877,7]
[355088669,1740887513455,-220606.47487583,0.000329,30]
[355088979,1740887516639,166.47267154,0.0002169,2]
[355088982,1740887516662,164.55118526,0.0002169,2]
[355088985,1740887516683,173.5384,0.0002169,2]
[355089241,1740887547798,5000.0,0.00023,10]
[355089242,1740887556233,739.15963517,0.00023,10]
[355089243,1740887564881,1243.56620219,0.00023,10]
[355089244,1740887602067,450.0,0.00023,10]